bitfinex-derivatives/quotes_BNBF0:USTF0_20250305
["timestamp","ask_amount","ask_price","bid_price","bid_amount"]
[1741185777198,0.557,594.04,593.02,0.33725675]
[1741185778600,0.557,594.04,593.15,1.25668065]
[1741185778998,0.557,594.04,593.16,0.33717715]
[1741185787003,0.29291327,594.76,593.16,0.33717715]
[1741185789510,0.29291327,594.76,593.46,1.25790298]
[1741185789710,0.29291327,594.76,593.47,0.33700102]
[1741185790708,0.33627574,594.75,593.47,0.33700102]
[1741185791806,0.3092334,594.74,593.47,0.33700102]
[1741185792804,0.29294039,594.73,593.47,0.33700102]
[1741185793010,0.3092334,594.72,593.47,0.33700102]
[1741185795713,0.29297738,594.71,593.47,0.33700102]
[1741185796315,0.3092334,594.7,593.47,0.33700102]
[1741185798611,0.33631532,594.68,593.47,0.33700102]
[1741185798816,0.3092334,594.67,593.47,0.33700102]
[1741185799115,0.64565387,594.66,593.47,0.33700102]
[1741185799312,0.64565952,594.65,593.47,0.33700102]
[1741185799514,0.64566518,594.64,593.47,0.33700102]
[1741185799712,0.64567083,594.63,593.47,0.33700102]
[1741185799908,0.64567649,594.62,593.47,0.33700102]
[1741185800210,0.64568215,594.61,593.47,0.33700102]
[1741185800407,0.6456878,594.6,593.47,0.33700102]
[1741185800617,0.64569346,594.59,593.47,0.33700102]
[1741185800814,0.64569912,594.58,593.47,0.33700102]
[1741185801015,0.64570478,594.57,593.47,0.33700102]
[1741185801214,0.30932723,594.56,593.47,0.33700102]
[1741185801717,0.62935391,594.55,593.47,0.33700102]
[1741185801915,0.30932723,594.54,593.47,0.33700102]
[1741185803221,0.33640018,594.53,593.47,0.33700102]
[1741185803421,0.30932723,594.52,593.47,0.33700102]
[1741185804818,0.29297492,594.51,593.47,0.33700102]
[1741185805015,0.30932723,594.5,593.47,0.33700102]
[1741185805926,0.30934178,594.49,593.47,0.33700102]
[1741185806119,0.30934178,594.48,593.47,0.33700102]
[1741185806326,0.30934178,594.47,593.47,0.33700102]
[1741185806624,0.29297492,594.51,593.47,0.33700102]
[1741185806625,0.30934178,594.46,593.47,0.33700102]
[1741185806825,0.30934178,594.45,593.47,0.33700102]
[1741185807027,0.29297492,594.51,593.47,0.33700102]
[1741185807226,0.30935635,594.5,593.47,0.33700102]
[1741185809131,0.535,594.49,593.47,0.33700102]
[1741185810732,0.29304893,594.48,593.47,0.33700102]
[1741185811133,0.30941782,594.47,593.47,0.33700102]
[1741185812435,0.30942561,594.46,593.47,0.33700102]
[1741185812730,0.29304893,594.48,593.47,0.33700102]
[1741185812731,0.30942561,594.45,593.47,0.33700102]
[1741185813029,0.29304893,594.48,593.47,0.33700102]
[1741185813233,0.30945897,594.47,592.64,1.25790298]
[1741185813434,0.30945897,594.47,592.98,1.25790298]
[1741185813640,0.30945897,594.48,592.98,1.25790298]
[1741185813837,0.29311311,594.46,592.98,1.25790298]
[1741185814335,0.30945897,594.45,592.98,1.25790298]
[1741185815631,0.29311311,594.46,592.84,1.25790298]
[1741185815834,0.3094243,594.45,592.84,1.25790298]
[1741185816836,0.60251519,594.44,592.84,1.25790298]
[1741185817035,0.3094243,594.43,592.84,1.25790298]
[1741185817535,0.30941998,594.42,592.84,1.25790298]
[1741185817731,0.30941998,594.43,592.84,1.25790298]
[1741185817931,0.30941998,594.42,592.84,1.25790298]
[1741185818129,0.30941998,594.41,592.89,1.25790298]
[1741185818335,0.30941998,594.4,592.89,1.25790298]
[1741185818535,0.30941998,594.43,592.89,1.25790298]
[1741185818836,0.30941998,594.42,592.89,1.25790298]
[1741185819135,0.30941998,594.43,592.89,1.25790298]
[1741185819334,0.30941998,594.42,592.89,1.25790298]
[1741185819530,0.30941998,594.43,592.89,1.25790298]
[1741185819734,0.30941998,594.42,592.89,1.25790298]
[1741185819927,0.30941998,594.43,592.89,1.25790298]
[1741185820128,0.30941998,594.42,592.89,1.25790298]
[1741185820334,0.30941998,594.41,592.89,1.25790298]
[1741185820534,0.30941998,594.43,592.8,1.25790298]
[1741185820732,0.30942698,594.42,592.8,1.25790298]
[1741185820935,0.30942698,594.41,592.8,1.25790298]
[1741185821132,0.30942698,594.4,592.8,1.25790298]
[1741185821336,0.30942698,594.43,592.8,1.25790298]
[1741185821638,0.30942698,594.42,592.82,0.33737053]
[1741185821941,0.30942698,594.41,592.82,0.33737053]
[1741185822137,0.30942698,594.43,592.82,0.33737053]
[1741185822439,0.30942698,594.42,592.82,0.33737053]
[1741185822739,0.30942698,594.41,592.82,0.33737053]
[1741185823040,0.30942698,594.4,592.82,0.33737053]
[1741185823239,0.30942698,594.39,592.82,0.33737053]
[1741185823437,0.30942698,594.43,592.82,0.33737053]
[1741185823640,0.30939813,594.42,592.82,0.33737053]
[1741185823838,0.30939708,594.41,592.82,0.33737053]
[1741185824040,0.30939708,594.43,592.82,0.33737053]
[1741185824336,0.29309089,594.44,592.82,0.33737053]
[1741185824538,0.30937773,594.43,592.82,0.33737053]
[1741185825637,0.29309089,594.44,592.88,1.25790298]
[1741185826438,0.30937407,594.43,592.88,1.25790298]
[1741185827038,0.29309089,594.44,592.88,1.25790298]
[1741185827236,0.30938176,594.43,592.88,1.25790298]
[1741185827941,0.30938176,594.43,593.1,1.25790298]
[1741185828738,0.60240069,594.42,593.1,1.25790298]
[1741185828939,0.29302425,594.42,593.1,1.25790298]
[1741185830538,0.30936929,594.41,593.11,0.33720557]
[1741185831143,0.30936929,594.41,593.21,1.25790298]
[1741185831639,0.30936929,594.48,593.21,1.25790298]
[1741185831841,0.29299588,594.44,593.22,0.33714304]
[1741185832043,0.30936929,594.43,593.22,0.33714304]
[1741185832242,0.29299588,594.44,593.22,0.33714304]
[1741185832738,0.29299588,594.44,593.29,1.25790298]
[1741185834445,0.535,594.49,593.29,1.25790298]
[1741185834748,0.29297738,594.44,593.29,1.25790298]
[1741185836147,0.29297738,594.44,593.22,0.33714304]
[1741185837441,0.535,594.49,593.22,0.33714304]
[1741185837945,0.29300945,594.43,593.22,0.33714304]
[1741185840649,0.33642847,594.48,593.22,0.33714304]
[1741185843747,0.29300452,594.47,593.22,0.33714304]
[1741185844352,0.30939313,594.46,593.22,0.33714304]
[1741185844950,0.30943938,594.45,593.22,0.33714304]
[1741185845155,0.30943938,594.46,593.22,0.33714304]
[1741185845348,0.30943938,594.45,593.22,0.33714304]
[1741185845549,0.30943938,594.44,593.22,0.33714304]
[1741185845855,0.30943938,594.43,593.22,0.33714304]
[1741185846054,0.30943938,594.42,593.22,0.33714304]
[1741185846355,0.29300452,594.47,593.22,0.33714304]
[1741185846554,0.30940176,594.46,593.22,0.33714304]
[1741185848060,0.30938027,594.45,593.22,0.33714304]
[1741185848260,0.30938027,594.46,593.22,0.33714304]
[1741185848460,0.29300452,594.47,593.22,0.33714304]
[1741185848461,0.30938027,594.45,593.22,0.33714304]
[1741185848661,0.30938027,594.44,593.22,0.33714304]
[1741185848861,0.30938027,594.43,593.22,0.33714304]
[1741185849076,0.30938027,594.46,593.22,0.33714304]
[1741185849258,0.30938027,594.45,593.22,0.33714304]
[1741185849460,0.30938027,594.44,593.22,0.33714304]
[1741185849761,0.30938027,594.43,593.22,0.33714304]
[1741185852762,0.60243907,594.42,593.22,0.33714304]
[1741185852963,0.30938027,594.41,593.22,0.33714304]
[1741185855064,0.30938027,594.41,593.04,1.25790298]
[1741185855663,0.30938027,594.4,593.04,1.55105312]
[1741185855860,0.30938027,594.39,593.04,1.55105312]
[1741185856063,0.30938027,594.47,593.04,1.55105312]
[1741185856359,0.30938027,594.46,593.04,1.55105312]
[1741185856565,0.30938027,594.45,593.04,1.55105312]
[1741185856765,0.30938027,594.44,593.04,1.55105312]
[1741185857364,0.30938027,594.44,593.04,0.29315014]
[1741185857963,0.33646243,594.42,593.04,0.29315014]
[1741185858165,0.30938027,594.41,593.04,0.29315014]
[1741185858464,0.33646243,594.42,592.58,1.25790298]
[1741185858465,0.30938027,594.4,592.58,1.25790298]
[1741185858663,0.30938027,594.39,592.6,0.33749578]
[1741185858860,0.30938027,594.38,593.04,0.29318225]
[1741185859065,0.30938027,594.37,592.6,0.33749578]
[1741185859266,0.30938027,594.36,592.6,0.33749578]
[1741185859464,0.33650772,594.34,592.66,1.25790298]
[1741185859668,0.30938027,594.33,592.67,0.33745591]
[1741185859868,0.30938027,594.32,592.67,0.33745591]
[1741185860063,0.30938027,594.31,592.67,0.33745591]
[1741185860367,0.30938027,594.3,592.67,0.33745591]
[1741185860568,0.33654169,594.28,592.67,0.33745591]
[1741185860869,0.30938027,594.27,592.68,0.29318719]
[1741185861168,0.33655868,594.25,592.69,0.33744453]
[1741185861469,0.30938027,594.24,592.69,0.33744453]
[1741185861670,0.33657567,594.22,592.69,0.33744453]
[1741185861862,0.30938027,594.21,592.69,0.33744453]
[1741185862066,0.33659267,594.19,592.69,0.33744453]
[1741185862265,0.30938027,594.18,592.69,0.33744453]
[1741185862469,0.33660966,594.16,592.69,0.33744453]
[1741185862664,0.30938027,594.15,592.69,0.33744453]
[1741185862864,0.64620576,594.14,592.69,0.33744453]
[1741185863171,0.30958477,594.13,592.69,0.33744453]
[1741185864272,0.33663799,594.11,592.69,0.33744453]
[1741185864470,0.30958477,594.1,592.69,0.33744453]
[1741185864866,0.6028226,594.1,592.69,0.33744453]
[1741185865069,0.30958477,594.09,592.69,0.33744453]
[1741185865573,0.33665499,594.08,592.69,0.33744453]
[1741185865773,0.30958477,594.07,592.69,0.33744453]
[1741185866170,0.33666633,594.06,592.69,0.33744453]
[1741185866377,0.30958477,594.05,592.69,0.33744453]
[1741185866570,0.33667766,594.04,592.69,0.33744453]
[1741185866774,0.30958477,594.03,592.69,0.33744453]
[1741185867174,0.336689,594.02,592.69,0.33744453]
[1741185867374,0.30958477,594.01,592.69,0.33744453]
[1741185867675,0.33670033,594.0,592.69,0.33744453]
[1741185867975,0.62995176,594.0,592.69,0.33744453]
[1741185868775,0.30962601,593.99,592.69,0.33744453]
[1741185869468,0.507,593.98,592.69,0.33744453]
[1741185869671,0.30962601,593.97,592.69,0.33744453]
[1741185872676,0.33672301,593.96,592.69,0.33744453]
[1741185872977,0.30962601,593.95,592.69,0.33744453]
[1741185873475,0.64635469,593.95,592.69,0.33744453]
[1741185873676,0.30962601,593.94,592.69,0.33744453]
[1741185873879,0.60287991,593.94,592.69,0.33744453]
[1741185874076,0.30962601,593.93,592.69,0.33744453]
[1741185875975,0.33675135,593.91,592.69,0.33744453]
[1741185876174,0.30962601,593.9,592.69,0.33744453]
[1741185877174,0.33676837,593.88,592.69,0.33744453]
[1741185877374,0.30962601,593.87,592.69,0.33744453]
[1741185877574,0.33677971,593.86,592.69,0.33744453]
[1741185877774,0.30962601,593.85,592.69,0.33744453]
[1741185878779,0.33679105,593.84,592.69,0.33744453]
[1741185878974,0.30962601,593.83,592.69,0.33744453]
[1741185879576,0.33680239,593.82,592.69,0.33744453]
[1741185879778,0.30962601,593.81,592.69,0.33744453]
[1741185880181,0.33681374,593.8,592.69,0.33744453]
[1741185880379,0.30962601,593.79,592.69,0.33744453]
[1741185880579,0.33682508,593.78,592.69,0.33744453]
[1741185880781,0.30962601,593.77,592.69,0.33744453]
[1741185881778,0.30973261,593.76,592.69,0.33744453]
[1741185881983,0.30973261,593.75,592.69,0.33744453]
[1741185882185,0.30973261,593.74,592.69,0.33744453]
[1741185882384,0.30973261,593.73,592.69,0.33744453]
[1741185882586,0.30973261,593.77,592.69,0.33744453]
[1741185882879,0.29334907,593.72,592.69,0.33744453]
[1741185883183,0.30973261,593.71,592.69,0.33744453]
[1741185886586,0.29334907,593.72,592.69,0.33744453]
[1741185886784,0.30987956,593.71,592.69,0.33744453]
[1741185888388,0.30990216,593.7,592.69,0.33744453]
[1741185888684,0.30990216,593.69,592.69,0.33744453]
[1741185888887,0.30990216,593.68,592.69,0.33744453]
[1741185889082,0.30990216,593.69,592.69,0.33744453]
[1741185889288,0.30990216,593.68,592.69,0.33744453]
[1741185889488,0.30990216,593.69,592.69,0.33744453]
[1741185889787,0.30990216,593.68,592.69,0.33744453]
[1741185889987,0.30990216,593.67,592.69,0.33744453]
[1741185890185,0.30990216,593.66,592.69,0.33744453]
[1741185890389,0.29352227,593.7,592.69,0.33744453]
[1741185890687,0.30986021,593.69,592.69,0.33744453]
[1741185891088,0.30986021,593.69,591.65,1.25790298]
[1741185891282,0.30986021,593.69,591.75,0.33798056]
[1741185891686,0.30986021,593.77,591.76,0.29352722]
[1741185891881,0.29352722,593.68,591.76,0.29352722]
[1741185892089,0.30986021,593.67,591.76,0.29352722]
[1741185892282,0.30986021,593.66,591.76,0.29352722]
[1741185892480,0.30986021,593.65,591.76,0.29352722]
[1741185892684,0.30986021,593.77,591.76,0.29352722]
[1741185892888,0.30986021,593.76,591.76,0.29352722]
[1741185893083,0.30986021,593.77,591.76,0.29352722]
[1741185893285,0.60335277,593.75,591.76,0.29352722]
[1741185893483,0.30986021,593.74,591.78,0.33796343]
[1741185894689,0.33685912,593.72,591.78,0.33796343]
[1741185894888,0.30986021,593.71,591.78,0.33796343]
[1741185895094,0.33687047,593.7,591.78,0.33796343]
[1741185895286,0.30986021,593.69,591.78,0.33796343]
[1741185895492,0.33688182,593.68,591.78,0.33796343]
[1741185895694,0.30986021,593.67,591.78,0.33796343]
[1741185895895,0.33689317,593.66,591.78,0.33796343]
[1741185896194,0.30986021,593.65,591.78,0.33796343]
[1741185896609,0.64673215,593.64,591.78,0.33796343]
[1741185896799,0.30982763,593.63,591.78,0.33796343]
[1741185897000,0.33691587,593.62,591.78,0.33796343]
[1741185897203,0.30982763,593.61,591.8,1.25790298]
[1741185897399,0.33692722,593.6,591.82,0.33794059]
[1741185897603,0.30982763,593.59,591.82,0.33794059]
[1741185897803,0.33693857,593.58,591.82,0.33794059]
[1741185898013,0.30982763,593.57,591.82,0.33794059]
[1741185898199,0.33694992,593.56,591.82,0.33794059]
[1741185898506,0.30982763,593.55,591.82,0.33794059]
[1741185898698,0.33696128,593.54,591.82,0.33794059]
[1741185898903,0.30982763,593.53,591.82,0.33794059]
[1741185899104,0.33697263,593.52,591.82,0.33794059]
[1741185899404,0.30982763,593.51,591.82,0.33794059]
[1741185899605,0.64680594,593.51,591.82,0.33794059]
[1741185899904,0.30982763,593.5,591.82,0.33794059]
[1741185900307,0.64681162,593.5,591.84,1.25790298]
[1741185900607,0.6468173,593.49,591.86,0.33791775]
[1741185900906,0.64682297,593.48,591.86,0.33791775]
[1741185901207,0.64682865,593.47,591.86,0.33791775]
[1741185901505,0.64686549,593.46,591.86,0.33791775]
[1741185901806,0.64687117,593.45,591.86,0.33791775]
[1741185902005,0.64687685,593.44,591.86,0.33791775]
[1741185902307,0.64688253,593.43,591.86,0.33791775]
[1741185902506,0.64688821,593.42,591.86,0.33791775]
[1741185902708,0.30985879,593.41,591.86,0.33791775]
[1741185903109,0.33702942,593.42,591.86,0.33791775]
[1741185904906,0.30985479,593.41,591.86,0.33791775]
[1741185905108,0.60337953,593.41,591.86,0.33791775]
[1741185905304,0.30985479,593.4,591.86,0.33791775]
[1741185905710,0.30985479,593.4,592.03,1.25790298]
[1741185906303,0.29352474,593.41,592.03,1.25790298]
[1741185906503,0.30990522,593.4,592.03,1.25790298]
[1741185908110,0.30990833,593.39,592.03,1.25790298]
[1741185908311,0.30990833,593.4,592.03,1.25790298]
[1741185908612,0.33702942,593.42,592.03,1.25790298]
[1741185908814,0.33702942,593.42,591.86,0.33791775]
[1741185913214,0.30984723,593.41,591.86,0.33791775]
[1741185914419,0.30984723,593.41,592.15,1.25790298]
[1741185914712,0.33702942,593.42,592.15,1.25790298]
[1741185914713,0.30984765,593.4,592.15,1.25790298]
[1741185915011,0.33702942,593.42,592.15,1.25790298]
[1741185916016,0.33702942,593.42,592.23,1.25790298]
[1741185916716,0.482,593.41,592.23,1.25790298]
[1741185917217,0.482,593.41,592.24,0.33770093]
[1741185918519,0.482,593.41,592.3,1.25790298]
[1741185918913,0.30987147,593.4,592.3,1.25790298]
[1741185920813,0.482,593.41,592.3,1.25790298]
[1741185921218,0.482,593.41,592.26,1.25790298]
[1741185922220,0.30988171,593.4,592.26,1.25790298]
[1741185922415,0.482,593.41,592.26,1.25790298]
[1741185922621,0.482,593.41,592.26,1.5955925]
[1741185923222,0.482,593.41,592.26,0.33768952]
[1741185927624,0.482,593.41,592.43,1.25790298]
[1741185928026,0.482,593.41,592.44,0.33758692]
[1741185935230,0.482,593.41,592.5,1.25790298]
[1741185935940,0.46650144,593.41,592.5,1.25790298]
[1741185937744,0.46650144,593.41,592.44,0.33758692]
[1741185949658,0.46650144,593.41,592.45,1.25790298]
[1741185952157,0.46650144,593.41,592.44,0.33758692]
[1741185954858,0.46650144,593.41,592.44,0.32664072]
[1741185971773,0.46650144,593.41,592.61,1.25790298]
[1741185973671,0.29334536,593.74,592.61,1.25790298]
[1741185973875,0.30972677,593.73,592.6,1.25790298]
[1741185975673,0.33685912,593.72,592.6,1.25790298]
[1741185975872,0.30972677,593.71,592.6,1.25790298]
[1741185976469,0.33685912,593.72,592.6,1.25790298]
[1741185976674,0.33685912,593.72,592.44,0.32664072]
[1741185976675,0.33685912,593.72,592.48,1.25790298]
[1741185976870,0.30973919,593.71,592.48,1.25790298]
[1741185977276,0.30973919,593.71,592.49,0.33755843]
[1741185977469,0.33685912,593.72,592.49,0.33755843]
[1741185978669,0.30973628,593.71,592.49,0.33755843]
[1741185978977,0.33685912,593.72,592.49,0.33755843]
[1741185979677,0.30973384,593.71,592.49,0.33755843]
[1741185980270,0.33685912,593.72,592.49,0.33755843]
[1741185981073,0.3097318,593.71,592.49,0.33755843]
[1741185981277,0.33685912,593.72,592.49,0.33755843]
[1741185981775,0.29336391,593.71,592.49,0.33755843]
[1741185983273,0.30974704,593.7,592.49,0.33755843]
[1741185983477,0.29336391,593.71,592.49,0.33755843]
[1741185983976,0.33687047,593.7,592.49,0.33755843]
[1741185984883,0.60322043,593.69,592.49,0.33755843]
[1741185985080,0.30981324,593.68,592.49,0.33755843]
[1741185986081,0.547,593.67,592.49,0.33755843]
[1741185986282,0.30981324,593.66,592.49,0.33755843]
[1741185989483,0.30978513,593.65,592.49,0.33755843]
[1741185989683,0.30978513,593.66,592.49,0.33755843]
[1741185989983,0.30978513,593.65,592.49,0.33755843]
[1741185990183,0.30978513,593.66,592.49,0.33755843]
[1741185992082,0.547,593.67,592.49,0.33755843]
[1741185992579,0.30981188,593.66,592.49,0.33755843]
[1741185993888,0.2934109,593.65,592.49,0.33755843]
[1741185994083,0.30981188,593.64,592.49,0.33755843]
[1741185994687,0.2934109,593.65,592.49,0.33755843]
[1741185994887,0.30980652,593.64,592.49,0.33755843]
[1741185995088,0.2934109,593.65,592.49,0.33755843]
[1741185995284,0.30980159,593.64,592.49,0.33755843]
[1741185995786,0.2934109,593.65,592.49,0.33755843]
[1741185995986,0.3098023,593.64,592.49,0.33755843]
[1741185996882,0.547,593.67,592.49,0.33755843]
[1741185996883,0.29341338,593.63,592.49,0.33755843]
[1741185997589,0.33691587,593.62,592.49,0.33755843]
[1741185998288,0.30981024,593.61,592.49,0.33755843]
[1741185998990,0.33692722,593.6,592.49,0.33755843]
[1741185999192,0.3098192,593.59,592.49,0.33755843]
[1741185999798,0.29341956,593.58,592.49,0.33755843]
[1741185999993,0.3098192,593.57,592.49,0.33755843]
[1741186000686,0.29341956,593.58,592.49,0.33755843]
[1741186000891,0.30983111,593.57,592.49,0.33755843]
[1741186001395,0.30983111,593.57,592.48,0.29341956]
[1741186002489,0.30992349,593.56,592.34,1.25790298]
[1741186002692,0.30992349,593.55,592.13,1.25790298]
[1741186002894,0.30992349,593.54,592.13,1.59566664]
[1741186003193,0.33697263,593.52,592.13,1.59566664]
[1741186003385,0.30992349,593.51,592.13,1.59566664]
[1741186004891,0.30992349,593.51,592.14,0.29353465]
[1741186005490,0.30992349,593.57,592.14,0.29353465]
[1741186005695,0.30992349,593.56,592.14,0.29353465]
[1741186005895,0.30992349,593.55,592.14,0.29353465]
[1741186006197,0.30992349,593.54,592.14,0.29353465]
[1741186006395,0.30992349,593.53,592.14,0.29353465]
[1741186006589,0.30992349,593.52,592.14,0.29353465]
[1741186006896,0.30992349,593.51,592.14,0.29353465]
[1741186007197,0.30992349,593.5,592.14,0.29353465]
[1741186007389,1.03992349,593.5,592.14,0.29353465]
[1741186007594,0.30992349,593.49,592.14,0.29353465]
[1741186007994,0.29341956,593.58,592.14,0.29353465]
[1741186008195,0.30990941,593.57,592.14,0.29353465]
[1741186008594,0.30990941,593.57,591.95,1.25790298]
[1741186008895,0.60344406,593.56,592.14,0.29353465]
[1741186009096,0.30990941,593.55,591.95,1.25790298]
[1741186009399,0.30990941,593.55,592.08,1.25790298]
[1741186011199,0.30990941,593.54,592.08,1.25790298]
[1741186011398,0.30990941,593.53,592.08,1.25790298]
[1741186011591,0.30990941,593.52,592.08,1.25790298]
[1741186011792,0.29357674,593.52,592.08,1.25790298]
[1741186011993,0.30990941,593.51,592.0,1.25790298]
[1741186012293,0.30990941,593.5,592.0,1.25790298]
[1741186012700,0.30990941,593.49,592.0,1.25790298]
[1741186012898,0.30990941,593.51,592.0,1.25790298]
[1741186013096,0.457,593.48,592.0,1.25790298]
[1741186013301,0.30990941,593.47,592.0,1.25790298]
[1741186013500,0.30990941,593.46,592.0,1.25790298]
[1741186013704,0.30990941,593.45,592.0,1.25790298]
[1741186013903,0.30990941,593.44,592.0,1.25790298]
[1741186014095,0.30990941,593.47,592.0,1.25790298]
[1741186014298,0.30990941,593.43,592.0,1.25790298]
[1741186014499,0.30990941,593.42,592.0,1.25790298]
[1741186014699,0.30990941,593.41,592.0,1.25790298]
[1741186014899,0.30990941,593.4,592.0,1.25790298]
[1741186015095,0.30990941,593.47,592.0,1.25790298]
[1741186015300,0.30990941,593.46,592.0,1.25790298]
[1741186015603,0.30990941,593.45,591.98,0.29364487]
[1741186015802,0.30990941,593.44,591.98,0.29364487]
[1741186016001,0.30990941,593.43,591.98,0.29364487]
[1741186016198,0.30990941,593.42,591.98,0.29364487]
[1741186016403,0.30990941,593.41,591.98,0.29364487]
[1741186016594,0.30990941,593.4,591.98,0.29364487]
[1741186016801,0.30990941,593.39,591.98,0.29364487]
[1741186017001,0.30990941,593.38,591.98,0.29364487]
[1741186017302,0.30990941,593.37,591.98,0.29364487]
[1741186017498,0.30990941,593.36,591.98,0.29364487]
[1741186017702,0.30990941,593.35,591.58,1.25790298]
[1741186018000,0.30990941,593.34,591.58,1.25790298]
[1741186018202,0.30990941,593.34,591.05,1.25790298]
[1741186018503,0.30990941,593.33,591.05,1.25790298]
[1741186018698,0.29375393,593.36,591.05,1.25790298]
[1741186018699,0.30990941,593.35,591.05,1.25790298]
[1741186018903,0.30990941,593.34,591.05,1.25790298]
[1741186019101,0.30990941,593.35,591.05,1.25790298]
[1741186019300,0.30990941,593.34,591.05,1.25790298]
[1741186019506,0.30990941,593.33,591.05,1.25790298]
[1741186019705,0.30990941,593.32,591.05,1.25790298]
[1741186019906,0.30990941,593.31,591.06,0.29383454]
[1741186020205,0.30990941,593.3,591.06,0.29383454]
[1741186020401,0.29375393,593.36,591.06,0.29383454]
[1741186020402,0.30990941,593.35,591.06,0.29383454]
[1741186020600,0.30990941,593.34,591.06,0.29383454]
[1741186021007,0.30990941,593.33,591.06,0.29383454]
[1741186021305,0.30990941,593.32,591.06,0.29383454]
[1741186021500,0.30990941,593.31,591.06,0.29383454]
[1741186021900,0.30990941,593.3,591.06,0.29383454]
[1741186022203,0.30990941,593.29,591.06,0.29383454]
[1741186022404,0.30990941,593.28,591.06,0.29383454]
[1741186022606,0.29375393,593.36,591.06,0.29383454]
[1741186022607,0.30990941,593.27,591.06,0.29383454]
[1741186022806,0.30990941,593.26,591.06,0.29383454]
[1741186023107,0.30990941,593.25,591.06,0.29383454]
[1741186023308,0.30990941,593.24,591.06,0.29383454]
[1741186023505,0.30990941,593.23,591.06,0.29383454]
[1741186023806,1.01079697,593.22,591.06,0.29383454]
[1741186024005,0.30990941,593.21,591.06,0.29383454]
[1741186024404,0.30990941,593.2,591.06,0.29383454]
[1741186024611,0.30990941,593.19,591.06,0.29383454]
[1741186024806,0.30990941,593.18,591.06,0.29383454]
[1741186025003,0.30990941,593.17,591.06,0.29383454]
[1741186025208,0.30990941,593.16,591.06,0.29383454]
[1741186025409,0.30990941,593.15,591.06,0.29383454]
[1741186025709,0.30990941,593.14,591.06,0.29383454]
[1741186026009,0.30990941,593.13,591.06,0.29383454]
[1741186026209,0.30990941,593.12,591.06,0.29383454]
[1741186026410,0.30990941,593.11,591.06,0.29383454]
[1741186026612,0.29375393,593.36,591.06,0.29383454]
[1741186026613,0.30990941,593.1,591.06,0.29383454]
[1741186026812,0.30990941,593.09,591.06,0.29383454]
[1741186027014,0.30990941,593.08,591.06,0.29383454]
[1741186027314,0.30990941,593.07,591.06,0.29383454]
[1741186027509,0.29375393,593.36,591.06,0.29383454]
[1741186027707,1.00965572,593.35,591.06,0.29383454]
[1741186027911,1.00965572,593.34,591.06,0.29383454]
[1741186028112,1.00965572,593.33,591.06,0.29383454]
[1741186028414,1.00965572,593.32,591.06,0.29383454]
[1741186028615,1.00965572,593.31,591.06,0.29383454]
[1741186028810,1.00965572,593.3,591.06,0.29383454]
[1741186029011,1.00965572,593.29,591.06,0.29383454]
[1741186029415,1.00965572,593.28,591.06,0.29383454]
[1741186029710,1.00965572,593.27,589.89,1.25790298]
[1741186029913,1.00965572,593.26,589.89,1.25790298]
[1741186030114,1.00965572,593.25,589.89,1.25790298]
[1741186030415,1.00965572,593.24,589.89,1.25790298]
[1741186030615,1.00965572,593.23,589.89,1.25790298]
[1741186030815,1.00965572,593.22,589.89,1.25790298]
[1741186031012,1.00965572,593.21,589.89,1.25790298]
[1741186031212,0.31047428,593.2,589.89,1.25790298]
[1741186031412,0.31047428,593.19,589.89,1.25790298]
[1741186031615,0.31047428,593.19,589.72,1.99022226]
[1741186031616,0.31047428,593.18,589.72,1.99022226]
[1741186031810,1.00965572,593.17,589.9,0.2941164]
[1741186032009,1.00965572,593.16,589.56,1.99022226]
[1741186032317,1.00965572,593.15,589.9,0.29417483]
[1741186032516,0.29413878,593.28,589.55,1.25790298]
[1741186032714,1.00908985,593.27,589.55,1.25790298]
[1741186032911,1.00908985,593.26,589.9,0.29419597]
[1741186033116,1.00908985,593.25,589.55,1.25790298]
[1741186033315,1.00908985,593.24,589.58,1.25790298]
[1741186033516,1.00908985,593.23,589.58,1.25790298]
[1741186033717,1.00908985,593.22,589.58,1.25790298]
[1741186033917,1.00908985,593.21,589.58,1.25790298]
[1741186034116,1.00908985,593.2,589.58,1.25790298]
[1741186034717,1.00908985,593.19,589.58,1.25790298]
[1741186034918,1.00908985,593.18,589.58,1.25790298]
[1741186035118,0.29413878,593.28,589.58,1.25790298]
[1741186035119,1.00908985,593.17,589.58,1.25790298]
[1741186035416,0.29413878,593.28,589.58,1.25790298]
[1741186035417,1.00908985,593.16,589.58,1.25790298]
[1741186035619,1.00908985,593.15,589.56,0.29418105]
[1741186035814,1.00908985,593.14,589.56,0.29418105]
[1741186036115,1.00908985,593.13,589.56,0.29418105]
[1741186036321,1.00908985,593.12,589.56,0.29418105]
[1741186036517,1.00908985,593.11,589.56,0.29418105]
[1741186036819,1.00908985,593.1,589.56,0.29418105]
[1741186037015,1.00908985,593.09,589.56,0.29418105]
[1741186037216,1.00908985,593.08,589.56,0.29418105]
[1741186037412,1.00908985,593.07,589.56,0.29418105]
[1741186037718,1.0089703,593.06,589.56,0.29418105]
[1741186037914,0.31066595,593.05,589.56,0.29418105]
[1741186038115,1.0089703,593.04,589.56,0.29418105]
[1741186038315,1.0089703,593.03,589.56,0.29418105]
[1741186038513,1.0089703,593.02,589.5,1.25790298]
[1741186038713,1.50170904,593.34,589.5,1.25790298]